bitfinex/quotes_BTCUSD_20240715
["timestamp","ask_amount","ask_price","bid_price","bid_amount"]
[1721084860100,1.64030774,64481.0,64480.0,0.014]
[1721084860299,1.68320066,64481.0,64480.0,0.014]
[1721084860610,1.68320066,64481.0,64480.0,0.019]
[1721084860814,1.68320066,64481.0,64480.0,0.014]
[1721084861059,1.68520066,64481.0,64480.0,0.014]
[1721084861257,1.68320066,64481.0,64480.0,0.014]
[1721084861475,1.69094066,64481.0,64480.0,0.014]
[1721084861705,1.69294066,64481.0,64480.0,0.001]
[1721084862062,1.69294066,64481.0,64480.0,0.008]
[1721084862262,1.69294066,64481.0,64480.0,0.008913]
[1721084862474,1.38277266,64481.0,64480.0,0.001913]
[1721084862687,1.23483266,64481.0,64480.0,0.001913]
[1721084862884,1.24457266,64481.0,64480.0,0.001913]
[1721084863093,1.24257266,64481.0,64480.0,0.000913]
[1721084863272,1.24457266,64481.0,64480.0,0.000913]
[1721084863482,1.24257266,64481.0,64480.0,0.000913]
[1721084863879,1.24457266,64481.0,64480.0,0.001913]
[1721084864678,1.24157266,64481.0,64480.0,0.000913]
[1721084865140,1.24357266,64481.0,64480.0,0.000913]
[1721084865341,1.24257266,64481.0,64480.0,0.000913]
[1721084865756,1.24557266,64481.0,64480.0,0.000913]
[1721084866233,1.24057266,64481.0,64480.0,0.000913]
[1721084866439,1.24257266,64481.0,64480.0,0.000913]
[1721084867070,1.23683266,64481.0,64480.0,0.000913]
[1721084867287,0.92366466,64481.0,64480.0,0.000913]
[1721084867488,0.8277773,64481.0,64480.0,0.000913]
[1721084867684,0.8375173,64481.0,64480.0,0.000913]
[1721084867884,0.79462438,64481.0,64480.0,0.000913]
[1721084868171,0.83752607,64481.0,64480.0,0.000913]
[1721084868823,0.83652607,64481.0,64480.0,0.000913]
[1721084869389,0.83952607,64481.0,64480.0,0.000913]
[1721084869501,0.83852607,64481.0,64480.0,0.000913]
[1721084869903,0.83852607,64481.0,64480.0,0.005913]
[1721084870113,0.83452607,64481.0,64480.0,0.005913]
[1721084870514,0.51661807,64481.0,64480.0,0.050913]
[1721084870715,0.51661807,64481.0,64480.0,0.0800293]
[1721084871109,0.05136607,64481.0,64480.0,0.0800293]
[1721084871544,0.20645007,64481.0,64480.0,0.0800293]
[1721084871744,0.51661807,64481.0,64480.0,0.0800293]
[1721084871978,0.82678607,64481.0,64480.0,0.0800293]
[1721084873400,1.13695407,64481.0,64480.0,0.007913]
[1721084873972,1.14469407,64481.0,64480.0,0.007913]
[1721084874169,1.13695407,64481.0,64480.0,0.005913]
[1721084874810,1.13695407,64481.0,64480.0,0.001913]
[1721084875012,1.14469407,64481.0,64480.0,0.005913]
[1721084875776,1.14469407,64481.0,64480.0,0.001913]
[1721084875975,1.13995407,64481.0,64480.0,0.001913]
[1721084876127,0.82978607,64481.0,64480.0,0.044913]
[1721084876328,0.82649679,64481.0,64480.0,0.044913]
[1721084876540,0.51632879,64481.0,64480.0,0.043913]
[1721084876864,0.51832879,64481.0,64480.0,0.044913]
[1721084877221,0.51832879,64481.0,64480.0,0.043913]
[1721084877626,0.51832879,64481.0,64480.0,0.002913]
[1721084877627,0.82849679,64481.0,64480.0,0.002913]
[1721084878231,0.82649679,64481.0,64480.0,0.002913]
[1721084879723,0.82649679,64481.0,64480.0,0.000913]
[1721084879724,1.14440479,64481.0,64480.0,0.000913]
[1721084879932,1.14440479,64481.0,64480.0,0.005913]
[1721084879933,1.19278068,64481.0,64480.0,0.005913]
[1721084880135,1.32704068,64481.0,64480.0,0.005913]
[1721084880285,1.35796862,64481.0,64480.0,0.005913]
[1721084880612,1.35022862,64481.0,64480.0,0.005913]
[1721084880813,1.79140694,64481.0,64480.0,0.005913]
[1721084881016,2.02318792,64481.0,64480.0,0.000913]
[1721084881215,2.04407162,64481.0,64480.0,0.000913]
[1721084881438,1.73964362,64481.0,64480.0,0.000913]
[1721084881877,1.71875992,64481.0,64480.0,0.000913]
[1721084882005,1.73964362,64481.0,64480.0,0.000913]
[1721084882208,1.71875992,64481.0,64480.0,0.000913]
[1721084882412,1.65565992,64481.0,64480.0,0.000913]
[1721084882846,1.65765992,64481.0,64480.0,0.000913]
[1721084883002,1.57675992,64481.0,64480.0,0.000913]
[1721084883209,1.24440479,64481.0,64480.0,0.000913]
[1721084883447,1.24640479,64481.0,64480.0,0.000913]
[1721084883643,1.29282833,64481.0,64480.0,0.000913]
[1721084884023,1.29482833,64481.0,64480.0,0.000913]
[1721084884276,0.87292033,64481.0,64480.0,0.043913]
[1721084884558,0.82649679,64481.0,64480.0,0.043913]
[1721084884760,0.83623679,64481.0,64480.0,0.043913]
[1721084885468,0.83623679,64481.0,64480.0,0.0730293]
[1721084885469,0.05307679,64481.0,64480.0,0.0730293]
[1721084885671,0.20816079,64481.0,64480.0,0.0730293]
[1721084885874,0.05307679,64481.0,64480.0,0.0730293]
[1721084886116,0.05107679,64481.0,64480.0,0.0730293]
[1721084886337,0.05107679,64481.0,64480.0,0.2247293]
[1721084886507,0.05307679,64481.0,64480.0,0.2247293]
[1721084886708,0.0081751,64481.0,64480.0,0.2247293]
[1721084887204,0.155072,64486.0,64485.0,0.0721163]
[1721084887412,0.19794324,64486.0,64485.0,0.0721163]
[1721084887710,0.19794324,64486.0,64485.0,0.1376163]
[1721084888267,0.04287124,64486.0,64485.0,0.1376163]
[1721084889079,0.155067,64488.0,64486.0,0.0812]
[1721084889327,0.19793577,64487.0,64486.0,0.0812]
[1721084889527,0.19793577,64487.0,64486.0,0.1103163]
[1721084890066,0.51581577,64487.0,64486.0,0.1533163]
[1721084890275,0.55452381,64487.0,64486.0,0.1533163]
[1721084890594,0.20221383,64487.0,64486.0,0.1352]
[1721084890780,0.00427806,64487.0,64486.0,0.29599109]
[1721084890987,0.00427806,64487.0,64486.0,0.47025109]
[1721084891341,0.00857,64497.0,64496.0,0.2188163]
[1721084891342,0.00083,64497.0,64496.0,0.2188163]
[1721084891669,0.00083,64497.0,64496.0,0.3700763]
[1721084891803,0.00083,64497.0,64496.0,0.2188163]
[1721084892404,0.00083,64497.0,64496.0,0.3930763]
[1721084892665,0.00083,64497.0,64496.0,0.2188163]
[1721084892861,0.00083,64497.0,64496.0,0.3700763]
[1721084893219,0.00083,64497.0,64496.0,0.2188163]
[1721084893416,0.00083,64497.0,64496.0,0.2248163]
[1721084893756,0.00083,64497.0,64496.0,0.3700763]
[1721084893956,0.00083,64497.0,64496.0,0.3840763]
[1721084894158,0.00083,64497.0,64496.0,0.3860763]
[1721084894685,0.00083,64497.0,64496.0,0.3840763]
[1721084894839,0.00083,64497.0,64496.0,0.3980763]
[1721084895041,0.00083,64497.0,64496.0,0.4058163]
[1721084895290,0.00083,64497.0,64496.0,0.2545563]
[1721084895470,0.00083,64497.0,64496.0,0.4058163]
[1721084895837,0.00083,64497.0,64496.0,0.2545563]
[1721084896040,0.00083,64497.0,64496.0,0.4058163]
[1721084896483,0.00083,64497.0,64496.0,1.0297963]
[1721084896657,0.00083,64497.0,64496.0,1.0527963]
[1721084897226,0.00083,64497.0,64496.0,1.0247963]
[1721084897455,0.00083,64497.0,64496.0,1.0747963]
[1721084897654,0.00083,64497.0,64496.0,1.4000563]
[1721084897862,0.00083,64497.0,64496.0,1.1887963]
[1721084898288,0.00083,64497.0,64496.0,1.1747963]
[1721084898486,0.00083,64497.0,64496.0,1.1887963]
[1721084898693,0.00083,64497.0,64496.0,1.2027963]
[1721084898912,0.00083,64497.0,64496.0,1.1887963]
[1721084899184,0.00083,64497.0,64496.0,1.2027963]
[1721084900614,0.00083,64497.0,64496.0,0.5788163]
[1721084900872,0.00083,64497.0,64496.0,0.6388163]
[1721084901131,0.00083,64497.0,64496.0,0.5788163]
[1721084901380,0.00083,64497.0,64496.0,0.5288163]
[1721084901867,0.00083,64497.0,64496.0,0.4058163]
[1721084902852,0.00941772,64497.0,64496.0,0.4058163]
[1721084903122,0.00083,64497.0,64496.0,0.4058163]
[1721084903619,0.00941772,64497.0,64496.0,0.3246163]
[1721084904591,0.00941772,64497.0,64496.0,0.2966163]
[1721084904788,0.00941772,64497.0,64496.0,0.3246163]
[1721084904919,0.00941772,64497.0,64496.0,0.3106163]
[1721084905121,0.16446272,64497.0,64496.0,0.0938563]
[1721084905346,0.31005,64506.0,64503.0,0.043]
[1721084905556,0.465088,64504.0,64503.0,0.043]
[1721084905728,0.775147,64504.0,64503.0,0.0721163]
[1721084906279,0.775147,64504.0,64503.0,0.043]
[1721084906538,0.77844819,64504.0,64503.0,0.0831163]
[1721084906772,0.46838919,64504.0,64503.0,0.0831163]
[1721084907146,0.46838919,64504.0,64503.0,0.0971163]
[1721084907505,0.46838919,64504.0,64503.0,0.1283]
[1721084907726,0.46838919,64504.0,64503.0,0.1574163]
[1721084908345,0.77844719,64504.0,64503.0,0.0861163]
[1721084908536,0.77844719,64504.0,64503.0,0.057]
[1721084908742,0.46838819,64504.0,64503.0,0.1001163]
[1721084909187,0.77844619,64504.0,64503.0,0.1001163]
[1721084910267,0.77844619,64504.0,64503.0,0.071]
[1721084910682,0.00330119,64504.0,64503.0,0.1001163]
[1721084911061,0.155027,64505.0,64503.0,0.1001163]
[1721084911263,0.00330119,64504.0,64503.0,0.1001163]
[1721084911467,0.00330119,64504.0,64503.0,0.071]
[1721084911717,0.00330119,64504.0,64503.0,0.1001163]
[1721084911923,0.15833019,64504.0,64503.0,0.0861163]
[1721084912126,0.15833019,64504.0,64503.0,0.0721163]
[1721084912311,0.15833019,64504.0,64503.0,0.0981163]
[1721084912518,0.15833019,64504.0,64503.0,0.0861163]
[1721084912924,0.1622359,64504.0,64503.0,0.056]
[1721084913151,0.1622359,64504.0,64503.0,0.0991163]
[1721084913492,0.4722939,64504.0,64503.0,0.07]
[1721084913699,0.1622359,64504.0,64503.0,0.0991163]
[1721084913893,0.0072069,64504.0,64503.0,0.0991163]
[1721084914308,0.0072069,64504.0,64503.0,0.2421163]
[1721084917004,0.0072069,64504.0,64503.0,0.3933763]
[1721084917172,0.002,64509.0,64508.0,0.043]
[1721084917372,0.002,64509.0,64508.0,0.1324163]
[1721084917584,0.002,64509.0,64508.0,0.2151163]
[1721084917828,0.002,64509.0,64508.0,0.21821608]
[1721084918100,0.002,64509.0,64508.0,0.36947608]
[1721084918332,0.002,64509.0,64508.0,0.3663763]
[1721084918503,0.002,64509.0,64508.0,0.3733763]
[1721084918703,0.002,64509.0,64508.0,0.2151163]
[1721084918903,0.002,64509.0,64508.0,0.3663763]
[1721084919164,0.002,64509.0,64508.0,0.3803763]
[1721084919534,0.00591952,64509.0,64508.0,0.3893763]
[1721084919759,0.002,64509.0,64508.0,0.3893763]
[1721084920178,0.002,64509.0,64508.0,0.3803763]
[1721084920318,0.002,64509.0,64508.0,0.2381163]
[1721084920526,0.002,64509.0,64508.0,0.25521582]
[1721084921019,0.002,64509.0,64508.0,0.2521163]
[1721084921217,0.002,64509.0,64508.0,0.2381163]
[1721084921481,0.002,64509.0,64508.0,0.3893763]
[1721084921682,0.002,64509.0,64508.0,0.4033763]
[1721084922635,0.002,64509.0,64508.0,0.4173763]
[1721084924200,0.002,64509.0,64508.0,0.3943763]
[1721084924671,0.002,64509.0,64508.0,0.2431163]
[1721084926111,0.002,64509.0,64508.0,0.3943763]
[1721084926763,0.00932654,64509.0,64508.0,0.3943763]
[1721084926964,0.01015654,64509.0,64508.0,0.3943763]
[1721084928794,0.00283,64509.0,64508.0,0.3943763]
[1721084930814,0.01015654,64509.0,64508.0,0.3943763]
[1721084931250,0.01015654,64509.0,64508.0,0.2431163]
[1721084931419,0.00283,64509.0,64508.0,0.2431163]
[1721084932115,0.00283,64509.0,64508.0,0.3943763]
[1721084932116,0.01015566,64509.0,64508.0,0.3943763]
[1721084932298,0.00283,64509.0,64508.0,0.2431163]
[1721084932452,0.01015566,64509.0,64508.0,0.2431163]
[1721084932659,0.00283,64509.0,64508.0,0.2431163]
[1721084933788,0.01015654,64509.0,64508.0,0.2431163]
[1721084933988,0.00283,64509.0,64508.0,0.2431163]
[1721084936293,0.00283,64509.0,64508.0,0.3943763]
[1721084937336,0.00615529,64509.0,64508.0,0.3943763]
[1721084937547,0.01015654,64509.0,64508.0,0.3943763]
[1721084939513,0.01015654,64509.0,64508.0,0.2431163]
[1721084939643,0.01015654,64509.0,64508.0,0.3943763]
[1721084940548,0.01015654,64509.0,64508.0,0.1604163]
[1721084940549,0.16517354,64509.0,64508.0,0.1604163]
[1721084940719,1.13597554,64509.0,64508.0,0.1001163]
[1721084941009,1.18646272,64509.0,64508.0,0.0571163]
[1721084941279,1.23290204,64509.0,64508.0,0.1001163]
[1721084941513,1.23290204,64509.0,64508.0,0.028]
[1721084941514,1.27934312,64509.0,64508.0,0.028]
[1721084941771,1.19506272,64509.0,64508.0,0.028]
[1721084941980,1.31116323,64509.0,64508.0,0.014]
[1721084942182,1.31116323,64509.0,64506.0,0.043]
[1721084942183,1.08515,64507.0,64506.0,0.0721163]
[1721084942352,1.19755346,64507.0,64506.0,0.0721163]
[1721084942557,1.19755346,64507.0,64506.0,0.2087163]
[1721084942558,0.04274718,64507.0,64506.0,0.2087163]
[1721084942696,0.00841435,64507.0,64506.0,0.2087163]
[1721084943098,0.00841435,64507.0,64506.0,0.3599763]
[1721084943297,0.0050987,64507.0,64506.0,0.2087163]
[1721084943500,0.00283,64509.0,64508.0,0.0721163]
[1721084943698,0.00283,64509.0,64508.0,0.0841163]
[1721084944147,0.00283,64509.0,64508.0,0.3962351]
[1721084944301,0.00283,64509.0,64508.0,0.4072351]
[1721084944513,0.00283,64509.0,64508.0,0.7072741]
[1721084944718,0.00283,64509.0,64508.0,0.7212741]
[1721084945115,0.00283,64509.0,64508.0,0.9325341]
[1721084945319,0.00283,64509.0,64508.0,0.7301743]
[1721084945750,0.00283,64509.0,64508.0,0.7181743]
[1721084945951,0.00283,64509.0,64508.0,0.9434343]
[1721084946110,0.00283,64509.0,64508.0,0.7321743]
[1721084946318,0.00283,64509.0,64508.0,0.9434343]
[1721084946538,0.00283,64509.0,64508.0,0.7321743]
[1721084947457,0.00283,64509.0,64508.0,0.9434343]
[1721084947956,0.00283,64509.0,64508.0,0.9294343]
[1721084948175,0.00283,64509.0,64508.0,1.0282133]
[1721084948357,0.00283,64509.0,64508.0,1.0422133]
[1721084949302,0.00283,64509.0,64508.0,0.9434343]
[1721084949643,0.00283,64509.0,64508.0,0.7321743]
[1721084949844,0.00283,64509.0,64508.0,0.9434343]
[1721084950044,0.00283,64509.0,64508.0,0.7321743]
[1721084950464,0.00283,64509.0,64508.0,0.9434343]
[1721084950676,0.00283,64509.0,64508.0,0.7321743]
[1721084951177,0.00283,64509.0,64508.0,0.9434343]
[1721084951829,0.00283,64509.0,64508.0,0.7321743]
[1721084952805,0.00283,64509.0,64508.0,0.9434343]
[1721084953009,0.00283,64509.0,64508.0,1.7967523]
[1721084953219,0.00835,64516.0,64515.0,0.5871233]
[1721084953405,0.00835,64516.0,64515.0,1.24430309]
[1721084953616,0.00835,64516.0,64515.0,1.45556309]
[1721084954617,0.00835,64516.0,64515.0,1.46956309]
[1721084955259,0.00835,64516.0,64515.0,1.48356309]
[1721084955567,0.00835,64516.0,64515.0,1.46956309]
[1721084956558,0.00835,64516.0,64515.0,1.25830309]
[1721084956756,0.00835,64516.0,64515.0,1.1451283]
[1721084957004,0.00835,64516.0,64515.0,1.4063883]
[1721084957198,0.00835,64516.0,64515.0,1.3923883]
[1721084957421,0.002,64534.0,64515.0,1.3923883]
[1721084957624,0.06958052,64539.0,64538.0,0.043]
[1721084957820,0.26719076,64539.0,64538.0,0.043]
[1721084957997,0.50750024,64539.0,64538.0,0.043]
[1721084958202,0.81739124,64539.0,64538.0,0.043]
[1721084958408,0.88697172,64539.0,64538.0,0.043]
[1721084958810,0.88697172,64539.0,64538.0,0.045]
[1721084959040,0.88697096,64539.0,64538.0,0.045]
[1721084959412,0.88698105,64539.0,64538.0,0.045]
[1721084959698,0.50750024,64539.0,64538.0,0.002]
[1721084959899,0.50750024,64539.0,64538.0,0.045]
[1721084960351,0.50750024,64539.0,64538.0,0.043]
[1721084960797,0.50750024,64539.0,64538.0,0.0741163]
[1721084960798,0.04266524,64539.0,64538.0,0.0741163]
[1721084960999,0.06958271,64547.0,64544.0,0.0721163]
[1721084961204,0.09478642,64549.0,64544.0,0.0721163]
[1721084961205,0.07158271,64549.0,64544.0,0.0721163]
[1721084961428,0.154926,64547.0,64544.0,0.0721163]
[1721084961635,0.002,64549.0,64544.0,0.0721163]
[1721084961833,0.002,64549.0,64544.0,0.1535163]
[1721084962687,0.002,64549.0,64544.0,0.0721163]
[1721084962845,0.154924,64548.0,64544.0,0.0721163]
[1721084963049,0.01694639,64545.0,64544.0,0.0721163]
[1721084963399,0.01694639,64545.0,64544.0,0.1221163]
[1721084963598,0.01694639,64545.0,64544.0,0.0771163]
[1721084963980,0.01694639,64545.0,64544.0,0.2311163]
[1721084964522,0.01694639,64545.0,64544.0,0.1001163]
[1721084964738,0.01694639,64545.0,64544.0,0.2451163]
[1721084965090,0.01694639,64545.0,64544.0,0.2571163]
[1721084965292,0.01694639,64545.0,64544.0,0.2451163]
[1721084965709,0.01694639,64545.0,64544.0,0.2591163]
[1721084966021,0.01694639,64545.0,64544.0,0.0861163]
[1721084966197,0.01694639,64545.0,64544.0,0.0721163]
[1721084966393,0.00834,64545.0,64544.0,0.2311163]
[1721084966595,0.00834,64545.0,64544.0,0.2451163]
[1721084967264,0.00834,64545.0,64544.0,0.2581163]
[1721084967418,0.00834,64545.0,64544.0,0.24821438]
[1721084967802,0.00834,64545.0,64544.0,0.26221438]
[1721084967997,0.00834,64545.0,64544.0,0.10321438]
[1721084968209,0.00834,64545.0,64544.0,0.2591163]
[1721084969013,0.00834,64545.0,64544.0,0.69654732]
[1721084969236,0.00834,64545.0,64544.0,1.3886813]
[1721084969477,0.00834,64545.0,64544.0,2.0175473]
[1721084969644,0.00834,64545.0,64544.0,2.0486473]
[1721084969844,0.00834,64545.0,64544.0,1.6576813]
[1721084970076,0.00834,64545.0,64544.0,1.0293153]
[1721084970223,0.00834,64545.0,64544.0,1.0753153]
[1721084970440,0.00834,64545.0,64544.0,1.0533153]
[1721084970855,0.00834,64545.0,64544.0,0.5005163]
[1721084971063,0.00834,64545.0,64544.0,0.4285163]
[1721084971278,0.00834,64545.0,64544.0,0.6434493]
[1721084971488,0.00834,64545.0,64544.0,0.9393153]
[1721084971691,0.00834,64545.0,64544.0,0.9533153]
[1721084971960,0.00834,64545.0,64544.0,0.7343153]
[1721084972114,0.00834,64545.0,64544.0,1.0301813]
[1721084972355,0.00834,64545.0,64544.0,1.0161813]
[1721084972509,0.00834,64545.0,64544.0,1.2606813]
[1721084972857,0.00834,64545.0,64544.0,1.6345473]
[1721084973059,0.00834,64545.0,64544.0,1.7845473]
[1721084973255,0.002,64549.0,64545.0,2.2611803]
[1721084973554,0.002,64549.0,64545.0,2.0050193]
[1721084973753,0.002,64549.0,64545.0,2.0550193]
[1721084975316,0.002,64549.0,64545.0,2.0690193]
[1721084975937,0.002,64549.0,64545.0,2.2880193]
[1721084976137,0.002,64549.0,64545.0,2.2380193]
[1721084976383,0.002,64549.0,64545.0,2.2520193]
[1721084976598,0.002,64549.0,64545.0,2.2380193]
[1721084976828,0.002,64549.0,64545.0,1.0272073]
[1721084977057,0.002,64549.0,64545.0,0.4894163]
[1721084977216,0.00835,64551.0,64550.0,220.2207663]
[1721084977420,0.00835,64551.0,64550.0,220.0617663]
[1721084977620,0.00835,64551.0,64550.0,220.2207663]
[1721084977820,0.00835,64551.0,64550.0,220.0617663]
[1721084979684,0.00835,64551.0,64550.0,220.0757663]
[1721084980231,0.00835,64551.0,64550.0,220.2487663]
[1721084980439,0.00835,64551.0,64550.0,220.0897663]
[1721084980579,0.00835,64551.0,64550.0,220.0617663]
[1721084980785,0.00835,64551.0,64550.0,220.0757663]
[1721084980985,0.00835,64551.0,64550.0,221.0086583]
[1721084981183,0.00835,64551.0,64550.0,221.2621583]
[1721084981428,0.00835,64551.0,64550.0,221.0176583]
[1721084981631,0.00835,64551.0,64550.0,221.0316583]
[1721084982813,0.00835,64551.0,64550.0,221.0036583]
[1721084983025,0.00835,64551.0,64550.0,221.0176583]
[1721084983226,0.00835,64551.0,64550.0,221.0316583]
[1721084983658,0.00835,64551.0,64550.0,221.0176583]
[1721084983847,0.00834,64557.0,64556.0,1.0409363]
[1721084984063,0.00834,64557.0,64556.0,1.3697622]
[1721084984390,0.00834,64557.0,64556.0,1.9240702]
[1721084984732,0.00834,64557.0,64556.0,1.92406101]
[1721084984933,0.00834,64557.0,64556.0,1.67956101]
[1721084985137,0.00834,64557.0,64556.0,0.62149509]
[1721084985341,0.00834,64557.0,64556.0,0.93130309]
[1721084985734,0.00834,64557.0,64556.0,1.75530083]
[1721084985995,0.00834,64557.0,64556.0,1.99980083]
[1721084986391,0.00834,64557.0,64556.0,2.63294357]
[1721084986592,0.00834,64557.0,64556.0,2.91594357]
[1721084986765,0.00835,64562.0,64561.0,1.5253603]
[1721084986969,0.00835,64562.0,64561.0,1.80078678]
[1721084987212,0.00835,64574.0,64561.0,1.80078678]
[1721084987213,0.00364387,64574.0,64573.0,0.2981163]
[1721084987420,0.0130691,64593.0,64592.0,1.5632383]
[1721084987624,0.0130691,64593.0,64592.0,1.90791309]
[1721084987796,0.0130691,64593.0,64592.0,1.58235329]
[1721084988002,0.0130691,64593.0,64592.0,1.34377809]
[1721084988265,0.0130691,64593.0,64592.0,0.31069109]
[1721084988475,0.0130691,64593.0,64592.0,0.14929109]
[1721084988673,0.0130691,64593.0,64592.0,0.0721163]
[1721084989315,0.0130691,64593.0,64592.0,0.2311163]
[1721084989520,0.0130691,64593.0,64592.0,0.0861163]
[1721084989923,0.0130691,64593.0,64592.0,0.2269333]
[1721084990234,0.0130691,64593.0,64592.0,0.8503863]
[1721084990434,0.0130691,64593.0,64592.0,0.8180683]
[1721084990639,0.0130691,64593.0,64592.0,0.9770683]
[1721084990840,0.0130691,64593.0,64592.0,1.86511309]
[1721084991042,0.0130691,64593.0,64592.0,1.99369276]
[1721084991246,0.0130691,64593.0,64592.0,1.93869276]
[1721084991445,0.0130691,64593.0,64592.0,2.0930745]
[1721084991664,0.0130691,64593.0,64592.0,2.1241645]
[1721084991826,0.0130691,64593.0,64592.0,2.1381645]
[1721084992231,0.0130691,64593.0,64592.0,2.1881645]
[1721084992435,0.0130691,64593.0,64592.0,2.1601645]
[1721084992634,0.0130691,64593.0,64592.0,2.1741645]
[1721084992838,0.0130691,64593.0,64592.0,1.62905776]
[1721084993192,0.0130691,64593.0,64592.0,1.94643276]
[1721084993494,0.0130691,64593.0,64592.0,1.97752276]
[1721084993792,0.0130691,64593.0,64592.0,2.02752276]
[1721084994013,0.0130691,64593.0,64592.0,2.04152276]
[1721084994153,0.0130691,64593.0,64592.0,2.18189324]
[1721084994361,0.0085638,64604.0,64603.0,0.8960733]
[1721084994606,0.0085638,64604.0,64603.0,1.53294809]
[1721084994812,0.0085638,64604.0,64603.0,1.97109203]
[1721084995537,0.0085638,64604.0,64603.0,2.89873197]
[1721084995714,0.002,64609.0,64608.0,1.8669623]
[1721084995913,0.00834,64627.0,64615.0,1.9096183]
[1721084996120,0.0383,64647.0,64615.0,1.9096183]
[1721084996122,0.01619479,64648.0,64643.0,0.2311163]
[1721084996320,0.01619479,64648.0,64643.0,1.08217709]
[1721084996583,0.0001867,64664.0,64643.0,0.2964163]
[1721084996584,0.46304871,64652.0,64643.0,0.2964163]
[1721084996718,0.1760701,64658.0,64643.0,0.2964163]
[1721084996719,0.154679,64650.0,64643.0,0.0721163]
[1721084997112,0.0374,64649.0,64643.0,0.06942172]
[1721084997280,0.309369,64648.0,64643.0,0.06942172]
[1721084997496,0.46426575,64644.0,64643.0,0.06942172]
[1721084997695,0.46426575,64644.0,64643.0,0.014]
[1721084997696,0.77365175,64644.0,64643.0,0.014]
[1721084997895,1.08303775,64644.0,64643.0,0.014]
[1721084998274,1.08303775,64644.0,64631.0,0.043]
[1721084998275,0.309439,64633.0,64631.0,0.043]
[1721084998479,0.32678675,64644.0,64626.0,0.06942172]
[1721084998480,0.510902,64627.0,64626.0,0.06942172]
[1721084998682,0.510902,64627.0,64625.0,0.06942172]
[1721084998683,0.464208,64626.0,64625.0,0.06942172]
[1721084998885,0.464244,64621.0,64620.0,0.043]
[1721084999044,0.464244,64621.0,64612.0,0.109]
[1721084999045,0.464251,64620.0,64619.0,0.043]
[1721084999243,0.464251,64620.0,64619.0,0.06942172]
[1721084999541,0.464251,64620.0,64619.0,0.043]
[1721084999542,0.773752,64620.0,64619.0,0.043]
[1721084999744,0.773752,64620.0,64619.0,0.06942172]
[1721085000332,0.464251,64620.0,64619.0,0.06942172]
[1721085000559,0.773752,64620.0,64619.0,0.06942172]
[1721085000969,1.083253,64620.0,64619.0,0.002]
[1721085001192,1.083253,64620.0,64606.0,0.043]
[1721085001193,0.619118,64608.0,64606.0,0.043]
[1721085001378,0.309568,64606.0,64602.0,0.043]
[1721085001589,0.464374,64603.0,64602.0,0.06942172]
[1721085001914,0.0467,64605.0,64601.0,0.043]
[1721085002342,0.154793,64602.0,64601.0,0.043]
[1721085002556,0.154793,64602.0,64601.0,0.06942172]
[1721085002557,0.773967,64602.0,64601.0,0.06942172]
[1721085002755,0.773967,64602.0,64601.0,0.043]
[1721085002964,0.1,64602.0,64593.0,0.043]
[1721085003166,0.1,64602.0,64592.0,0.05074]
[1721085003167,0.774077,64593.0,64592.0,0.05074]
[1721085003365,1.083708,64593.0,64592.0,0.00774]
[1721085004310,0.774077,64593.0,64592.0,0.00774]
[1721085004611,0.1354,64601.0,64596.0,0.043]
[1721085004834,0.0354,64601.0,64596.0,0.043]
[1721085005032,0.774027,64597.0,64596.0,0.043]
[1721085005312,0.774027,64597.0,64594.0,0.02642172]
[1721085005313,0.464399,64600.0,64599.0,0.043]
[1721085005513,0.309565,64607.0,64592.0,0.08491479]
[1721085005514,0.464348,64607.0,64606.0,0.043]
[1721085005765,0.30956,64608.0,64607.0,0.043]
[1721085005971,0.773898,64608.0,64607.0,0.043]
[1721085006330,0.154771,64612.0,64611.0,0.043]
[1721085006531,0.464311,64612.0,64611.0,0.043]
[1721085006732,0.464311,64612.0,64611.0,0.042]
[1721085007191,0.464311,64612.0,64611.0,0.038]
[1721085008023,0.154771,64612.0,64611.0,0.038]
[1721085008229,0.464283,64616.0,64615.0,0.038]
[1721085008459,0.464283,64616.0,64615.0,0.11517479]
[1721085008739,0.773803,64616.0,64615.0,0.11517479]
[1721085008968,0.773802,64616.0,64615.0,0.11517479]
[1721085009191,0.464282,64616.0,64615.0,0.11517479]
[1721085009410,0.464282,64616.0,64615.0,0.07717479]
[1721085009411,0.773802,64616.0,64615.0,0.07717479]
[1721085009878,0.773802,64616.0,64615.0,0.11817479]
[1721085010088,0.773802,64616.0,64615.0,0.07917479]
[1721085010317,0.773802,64616.0,64615.0,0.07717479]
[1721085011145,0.773802,64616.0,64615.0,0.11517479]
[1721085011367,0.773802,64616.0,64615.0,0.11617479]
[1721085011587,0.773802,64616.0,64615.0,0.11517479]
[1721085012004,0.773802,64616.0,64615.0,0.11617479]
[1721085012245,0.773802,64616.0,64615.0,0.11917479]
[1721085012438,0.773802,64616.0,64615.0,0.08317479]
[1721085012673,0.773802,64616.0,64615.0,0.08017479]
[1721085013059,0.773802,64616.0,64615.0,0.08417479]
[1721085013266,1.083322,64616.0,64615.0,0.08417479]
[1721085013517,1.083322,64616.0,64615.0,0.08017479]
[1721085013895,1.183322,64616.0,64615.0,0.08317479]
[1721085014097,1.183322,64616.0,64615.0,0.07817479]
[1721085014401,1.183322,64616.0,64615.0,0.07517479]
[1721085014601,1.183322,64616.0,64615.0,0.07617479]
[1721085014898,1.574942,64616.0,64615.0,0.07517479]
[1721085015148,1.92004028,64616.0,64615.0,0.07517479]
[1721085015373,1.08347,64607.0,64606.0,0.07717479]
[1721085015607,1.797033,64607.0,64606.0,0.07717479]
[1721085016358,1.879133,64607.0,64606.0,0.07717479]
[1721085016746,1.9215256,64607.0,64606.0,0.07717479]
[1721085016939,1.888133,64607.0,64606.0,0.07817479]
[1721085017142,2.25208818,64607.0,64606.0,0.001]
[1721085017436,2.25208818,64607.0,64592.0,0.00774]
[1721085017437,1.083708,64593.0,64592.0,0.00774]
[1721085017636,1.119108,64593.0,64592.0,0.00774]
[1721085017839,1.219108,64593.0,64592.0,0.00774]
[1721085018653,1.219108,64593.0,64592.0,0.00974]
[1721085019012,1.265808,64593.0,64592.0,0.00774]
[1721085019180,1.265808,64593.0,64592.0,0.01074]
[1721085019943,1.575439,64593.0,64592.0,0.01074]
[1721085020281,1.575439,64593.0,64592.0,0.00774]
[1721085020682,1.575439,64593.0,64592.0,0.01074]